Workbook

Sheet Om verktøyet
B2: Visualisteringsstøtte for sammenstilling av områdeprosjekter i FutureBuilt
B3: Klimagassutslipp og karbonbinding knyttet til bygningers material- og energibruk. Regnearket benyttes til justering av beregningsresultater fra en NS3720-beregning.
B4: Dette verktøyet viser samlet måloppnåelse for bygningsmasse (inkludert grunn og fundamenter) transport, infrastruktur og landskap i et område
B5: Verktøyet er utviklet av FutureBuilt og er tilpasset ZERO-O V1.2 (2024)
B6: Første publikasjon: 20. juni 2025
B7: Revidert: Ingen revisjon foreløpig
B12: Om verktøyet
B14: Dette verktøyet er en visualisering av ZERO-O sin måloppnåelse for området som helhet.
B15: Verktøyet beregner:
A16: 1. | B16: Om 25 % av byggene (inkludert transport i drift), landskapene og infrastrukturen er fullverdige FutureBuilt forbildeprosjekter med 50 prosent utslippsreduksjon.
C17: Dette vises nederst i arkfanen i ZERO-O samlet beregning
A19: 2. | B19: Om området som helhet har minimum 25 prosent lavere klimagassutslipp enn Paris-kravene fra bygningsmasse, transport i drift, landskap og infrastruktur.
C20: Dette vises også nederst i arkfanen i ZERO-O samlet beregning
B23: Man trenger å benytte eksterne eller verktøy utviklet av FutureBuilt i tillegg til dette excel-arket.
B24: Hensikten med arket er å vise måloppnåelse opp mot ZERO-O Hovedkriterium.

Sheet ZERO-O Samlet beregning
C2: ZERO-O Samlet områdeberegning
C4: Regnearket benyttes for å visualisere og beregne samlet måloppnåelse i ZERO-O. | H4: Fyll inn gule felter
C5: Du skal kun registrere data i gule felter. | H5: Grå felter beregnes automatisk
C6: Fyll inn stegvis de ulike utslippskategoriene, med inndata hentet fra andre beregningsverktøy. | H6: Midlertidige resultater
H7: Krav
C8: ZERO-O er obligatorisk for alle FutureBuilt forbildeområder.
C9: Dersom ZERO-L eller ZERO-T velges som tilvalg i et forbildeområde, skal ambisjonene om utslippsreduksjon og forbildeareal økes til 50 %.
C10: Dersom det er beregnet over 50 % reduksjon i forhold til Paris-kravet i beregningene under, blir prosjektet automatisk satt som forbilde.
C11: Den samlede beregningen henter ut verdier fra alle celler som er satt som "Forbilde"
C12: Dette feltet kan overstyres og settes som Forbilde manuelt, hvis det er en ambisjon om at prosjektet skal være et forbilde, uten å ha nådd 50 % reduksjon enda.
C15: Prosjektinformasjon
C16: Fyll inn prosjektinformasjon.
C17: Navn på område | D17: Fyll inn
C18: Beregningsdato | D18: Fyll inn
C19: Beregnet av | D19: Fyll inn
C20: Firma | D20: Fyll inn
C21: Beregningsperiode (år) | D21: 50 | E21: NB: ZERO-metoden bruker 50 år. Tallet påvirker ikke resultatet i dette arket, men skal bekrefte at det er brukt 50 års beregningsperiode i inndataen lagt inn i samleberegningen.
B25: Bygningsmasse | C25: Steg 1: Registrering av bygninger etter ZERO-B V3.1
C26: Fyll ut gule felter i tabellen.
C27: Fyll inn prosjektinformasjon, bygningstype, oppvarmet og BRA.
C29: Hvis tidlig fase: | D29: Benytt beregningsverktøy for ZERO-O.
D30: Under arkfanen "Bygningsmasse" fyll inn arealer og bygningstype og spesifikt reduksjonsmål.
D31: Under akfanen "Klimabudsjett" finner du klimabudsjettet for byggene dine. Fyll inn Klimabudsjett fra kollonne H og del på BRA.
D32: Denne verdien fylles inn under "Prosjektets beregnede utslipp" i kollonne I under.
C34: Hvis senere faser: | D34: Reduzer beregner automatisk kravsnivå og prosjektets beregnede utslipp iht. ZERO-B V3.1 metodikken automatisk.
D35: Fyll da inn Prosjektets beregnede utslipp og FutureBuilt kravsnivå. Det kan brukes detaljerte beregninger eller automodell.
D36: Modul for ZERO-B i OneClick arbeides med, og kommer trolig i løpet av årsskiftet 2025/2026.
I37: kgCO2e/m2 | K37: Viser måloppnåelsen | Z37: % (Produksjon av figur)
C38: Delområde/Byggetrinn | D38: Prosjektnavn | E38: Velg bygningstype | F38: Type beregning | G38: År ferdigstillelse | H38: Oppvarmet BRA | I38: Prosjektets beregnede utslipp | J38: FutureBuilt Kravsnivå | K38: Prosjektets reduksjon ift Pariskravet i % | L38: Antatt Forbilde | Z38: Paris-kravet | AA38: Pariskravet | AB38: FB Kravsnivå | AC38: Prosjektets plassering kurve
C39: Fyll inn | D39: Fyll inn | E39: Skolebygg | F39: Tidlig design | G39: 2025 | H39: 3500 | I39: 180 | J39: 200 | K39: =IF(H39="", "", 100 - I39 * 100 / Z39) -> 55 | L39: =IF(K39="", "", IF(K39>50, "Forbilde", "Ikke forbilde")) -> Forbilde | Z39: =J39*2 -> 400 | AA39: =IF(G39="", "", VLOOKUP(G39,Tabellverdier!$B$11:$C$42, 2, FALSE)*2) -> 75 | AB39: =IF(G39="","",VLOOKUP(G39,Tabellverdier!$B$11:$C$42,2,FALSE)) -> 37.5 | AC39: =IF(H39="", "", AA39-(AA39*K39)/100) -> 33.75
C40: Fyll inn | D40: Fyll inn | E40: Kontor | F40: Tidlig design | G40: 2028 | H40: 5000 | I40: 320 | J40: 180 | K40: =IF(H40="", "", 100 - I40 * 100 / Z40) -> 11.11111111 | L40: =IF(K40="", "", IF(K40>50, "Forbilde", "Ikke forbilde")) -> Ikke forbilde | Z40: =J40*2 -> 360 | AA40: =IF(G40="", "", VLOOKUP(G40,Tabellverdier!$B$11:$C$42, 2, FALSE)*2) -> 60 | AB40: =IF(G40="","",VLOOKUP(G40,Tabellverdier!$B$11:$C$42,2,FALSE)) -> 30 | AC40: =IF(H40="", "", AA40-(AA40*K40)/100) -> 53.33333333
C41: Fyll inn | D41: Fyll inn | E41: Boligblokk | F41: Sen design | G41: 2032 | H41: 5000 | I41: 500 | J41: 300 | K41: =IF(H41="", "", 100 - I41 * 100 / Z41) -> 16.66666667 | L41: Ikke forbilde | Z41: =J41*2 -> 600 | AA41: =IF(G41="", "", VLOOKUP(G41,Tabellverdier!$B$11:$C$42, 2, FALSE)*2) -> 46 | AB41: =IF(G41="","",VLOOKUP(G41,Tabellverdier!$B$11:$C$42,2,FALSE)) -> 23 | AC41: =IF(H41="", "", AA41-(AA41*K41)/100) -> 38.33333333
E42: Boligblokk | K42: =IF(H42="", "", 100 - I42 * 100 / Z42) ->  | Z42: =J42*2 -> 0 | AA42: =IF(G42="", "", VLOOKUP(G42,Tabellverdier!$B$11:$C$42, 2, FALSE)*2) ->  | AB42: =IF(G42="","",VLOOKUP(G42,Tabellverdier!$B$11:$C$42,2,FALSE)) ->  | AC42: =IF(H42="", "", AA42-(AA42*K42)/100) -> 
E43: Boligblokk | K43: =IF(H43="", "", 100 - I43 * 100 / Z43) ->  | Z43: =J43*2 -> 0 | AA43: =IF(G43="", "", VLOOKUP(G43,Tabellverdier!$B$11:$C$42, 2, FALSE)*2) ->  | AB43: =IF(G43="","",VLOOKUP(G43,Tabellverdier!$B$11:$C$42,2,FALSE)) ->  | AC43: =IF(H43="", "", AA43-(AA43*K43)/100) -> 
K44: =IF(H44="", "", 100 - I44 * 100 / Z44) ->  | Z44: =J44*2 -> 0 | AA44: =IF(G44="", "", VLOOKUP(G44,Tabellverdier!$B$11:$C$42, 2, FALSE)*2) ->  | AB44: =IF(G44="","",VLOOKUP(G44,Tabellverdier!$B$11:$C$42,2,FALSE)) ->  | AC44: =IF(H44="", "", AA44-(AA44*K44)/100) -> 
Z45: =J45*2 -> 0 | AA45: =IF(G45="", "", VLOOKUP(G45,Tabellverdier!$B$11:$C$42, 2, FALSE)*2) ->  | AB45: =IF(G45="","",VLOOKUP(G45,Tabellverdier!$B$11:$C$42,2,FALSE)) ->  | AC45: =IF(H45="", "", AA45-(AA45*K45)/100) -> 
K46: =IF(H46="", "", 100 - I46 * 100 / Z46) ->  | Z46: =J46*2 -> 0 | AA46: =IF(G46="", "", VLOOKUP(G46,Tabellverdier!$B$11:$C$42, 2, FALSE)*2) ->  | AB46: =IF(G46="","",VLOOKUP(G46,Tabellverdier!$B$11:$C$42,2,FALSE)) ->  | AC46: =IF(H46="", "", AA46-(AA46*K46)/100) -> 
K47: =IF(H47="", "", 100 - I47 * 100 / Z47) ->  | Z47: =J47*2 -> 0 | AA47: =IF(G47="", "", VLOOKUP(G47,Tabellverdier!$B$11:$C$42, 2, FALSE)*2) ->  | AB47: =IF(G47="","",VLOOKUP(G47,Tabellverdier!$B$11:$C$42,2,FALSE)) ->  | AC47: =IF(H47="", "", AA47-(AA47*K47)/100) -> 
K48: =IF(H48="", "", 100 - I48 * 100 / Z48) ->  | Z48: =J48*2 -> 0 | AA48: =IF(G48="", "", VLOOKUP(G48,Tabellverdier!$B$11:$C$42, 2, FALSE)*2) ->  | AB48: =IF(G48="","",VLOOKUP(G48,Tabellverdier!$B$11:$C$42,2,FALSE)) ->  | AC48: =IF(H48="", "", AA48-(AA48*K48)/100) -> 
K49: =IF(H49="", "", 100 - I49 * 100 / Z49) ->  | Z49: =J49*2 -> 0 | AA49: =IF(G49="", "", VLOOKUP(G49,Tabellverdier!$B$11:$C$42, 2, FALSE)*2) ->  | AB49: =IF(G49="","",VLOOKUP(G49,Tabellverdier!$B$11:$C$42,2,FALSE)) ->  | AC49: =IF(H49="", "", AA49-(AA49*K49)/100) -> 
K50: =IF(H50="", "", 100 - I50 * 100 / Z50) ->  | Z50: =J50*2 -> 0 | AA50: =IF(G50="", "", VLOOKUP(G50,Tabellverdier!$B$11:$C$42, 2, FALSE)*2) ->  | AB50: =IF(G50="","",VLOOKUP(G50,Tabellverdier!$B$11:$C$42,2,FALSE)) ->  | AC50: =IF(H50="", "", AA50-(AA50*K50)/100) -> 
K51: =IF(H51="", "", 100 - I51 * 100 / Z51) ->  | Z51: =J51*2 -> 0 | AA51: =IF(G51="", "", VLOOKUP(G51,Tabellverdier!$B$11:$C$42, 2, FALSE)*2) ->  | AB51: =IF(G51="","",VLOOKUP(G51,Tabellverdier!$B$11:$C$42,2,FALSE)) ->  | AC51: =IF(H51="", "", AA51-(AA51*K51)/100) -> 
K52: =IF(H52="", "", 100 - I52 * 100 / Z52) ->  | Z52: =J52*2 -> 0 | AA52: =IF(G52="", "", VLOOKUP(G52,Tabellverdier!$B$11:$C$42, 2, FALSE)*2) ->  | AB52: =IF(G52="","",VLOOKUP(G52,Tabellverdier!$B$11:$C$42,2,FALSE)) ->  | AC52: =IF(H52="", "", AA52-(AA52*K52)/100) -> 
K53: =IF(H53="", "", 100 - I53 * 100 / Z53) ->  | Z53: =J53*2 -> 0 | AA53: =IF(G53="", "", VLOOKUP(G53,Tabellverdier!$B$11:$C$42, 2, FALSE)*2) ->  | AB53: =IF(G53="","",VLOOKUP(G53,Tabellverdier!$B$11:$C$42,2,FALSE)) ->  | AC53: =IF(H53="", "", AA53-(AA53*K53)/100) -> 
K54: =IF(H54="", "", 100 - I54 * 100 / Z54) ->  | Z54: =J54*2 -> 0 | AA54: =IF(G54="", "", VLOOKUP(G54,Tabellverdier!$B$11:$C$42, 2, FALSE)*2) ->  | AB54: =IF(G54="","",VLOOKUP(G54,Tabellverdier!$B$11:$C$42,2,FALSE)) ->  | AC54: =IF(H54="", "", AA54-(AA54*K54)/100) -> 
K55: =IF(H55="", "", 100 - I55 * 100 / Z55) ->  | Z55: =J55*2 -> 0 | AA55: =IF(G55="", "", VLOOKUP(G55,Tabellverdier!$B$11:$C$42, 2, FALSE)*2) ->  | AB55: =IF(G55="","",VLOOKUP(G55,Tabellverdier!$B$11:$C$42,2,FALSE)) ->  | AC55: =IF(H55="", "", AA55-(AA55*K55)/100) -> 
K56: =IF(H56="", "", 100 - I56 * 100 / Z56) ->  | Z56: =J56*2 -> 0 | AA56: =IF(G56="", "", VLOOKUP(G56,Tabellverdier!$B$11:$C$42, 2, FALSE)*2) ->  | AB56: =IF(G56="","",VLOOKUP(G56,Tabellverdier!$B$11:$C$42,2,FALSE)) ->  | AC56: =IF(H56="", "", AA56-(AA56*K56)/100) -> 
K57: =IF(H57="", "", 100 - I57 * 100 / Z57) ->  | Z57: =J57*2 -> 0 | AA57: =IF(G57="", "", VLOOKUP(G57,Tabellverdier!$B$11:$C$42, 2, FALSE)*2) ->  | AB57: =IF(G57="","",VLOOKUP(G57,Tabellverdier!$B$11:$C$42,2,FALSE)) ->  | AC57: =IF(H57="", "", AA57-(AA57*K57)/100) -> 
K58: =IF(H58="", "", 100 - I58 * 100 / Z58) ->  | Z58: =J58*2 -> 0 | AA58: =IF(G58="", "", VLOOKUP(G58,Tabellverdier!$B$11:$C$42, 2, FALSE)*2) ->  | AB58: =IF(G58="","",VLOOKUP(G58,Tabellverdier!$B$11:$C$42,2,FALSE)) ->  | AC58: =IF(H58="", "", AA58-(AA58*K58)/100) -> 
C59: 25 % av bygningsmassen skal være fullverdige forbildeprosjekter med 50 % utslippsreduksjon.
C60: Bygningsmassen samlet skal ha en utslippsreduksjon på 25 %.
C62: Bygningsmassen | D62: Resultat | E62: Krav
C63: Forbildeareal | D63: =D245*100/D244/100 -> 0.2592592593 | E63: 0.25
C64: CO2-reduksjon, vektet areal | D64: =SUMPRODUCT(H39:H58,K39:K58)/D244/100 -> 0.245473251 | E64: 0.25
B70: Transport | C70: Steg 3: Registrering av transport etter ZERO-T V4.0
C71: Fyll ut gule felter i tabellen og benytt ZERO-T V4.0 beregninsverktøy for å finne Prosjektets verdi og FutureBuilts mål
C72: Prosjektets verdi - hvis prosjekteringsfase: hent data fra punkt 6. med alle prosjektets tiltak for mobilitet
C73: Prosjektets verdi - hvis i drift: hent data fra punkt 7. med egen RVU
C74: FutureBuilt Kravsnivå: hent data fra punkt 0: FutureBuilts mål
C75: Hvis bygget er flerfunksjonelt, gå til arkfanen "Transport flerfunksjon" for å finne mellomberegningen.
I76: kgCO2e/m2 | K76: Viser måloppnåelsen | Z76: % (Produksjon av figur)
C77: Byggetrinn | D77: Prosjektnavn | E77: Velg bygningstype | F77: Type beregning | G77: År ferdigstillelse | H77: Oppvarmet BRA | I77: Prosjektets verdi | J77: FutureBuilts mål | K77: Prosjektets reduksjon ift Pariskravet i % | L77: Antatt Forbilde | Z77: Utslipp gitt ref.lokalisering | AA77: Pariskravet | AB77: FB Kravsnivå | AC77: Prosjektets plassering kurve
C78: Fyll inn | D78: Fyll inn | E78: Skolebygg | F78: Sen design | G78: 2026 | H78: 3500 | I78: 150 | J78: 200 | K78: =IF(H78="", "", 100 - I78 * 100 / Z78) -> 62.5 | L78: =IF(K78="", "", IF(K78>50, "Forbilde", "Ikke forbilde")) -> Forbilde | Z78: =J78*2 -> 400 | AA78: =IF(G78="", "", VLOOKUP(G78,Tabellverdier!$B$11:$C$42, 2, FALSE)*2) -> 70 | AB78: =IF(G78="","",VLOOKUP(G78,Tabellverdier!$B$11:$C$42,2,FALSE)) -> 35 | AC78: =IF(H78="", "", AA78-(AA78*K78)/100) -> 26.25
C79: Fyll inn | D79: Fyll inn | E79: Kontor | F79: Tidlig design | G79: 2030 | H79: 5000 | I79: 450 | J79: ='Transport flerfunksjon'!I44 -> 266.6666667 | K79: =IF(H79="", "", 100 - I79 * 100 / Z79) -> 15.625 | L79: =IF(K79="", "", IF(K79>50, "Forbilde", "Ikke forbilde")) -> Ikke forbilde | Z79: =J79*2 -> 533.3333333 | AA79: =IF(G79="", "", VLOOKUP(G79,Tabellverdier!$B$11:$C$42, 2, FALSE)*2) -> 50 | AB79: =IF(G79="","",VLOOKUP(G79,Tabellverdier!$B$11:$C$42,2,FALSE)) -> 25 | AC79: =IF(H79="", "", AA79-(AA79*K79)/100) -> 42.1875
C80: Fyll inn | D80: Fyll inn | E80: Boligblokk | F80: Tidlig design | G80: 2035 | H80: 5000 | I80: 1000 | J80: 600 | K80: =IF(H80="", "", 100 - I80 * 100 / Z80) -> 16.66666667 | L80: =IF(K80="", "", IF(K80>50, "Forbilde", "Ikke forbilde")) -> Ikke forbilde | Z80: =J80*2 -> 1200 | AA80: =IF(G80="", "", VLOOKUP(G80,Tabellverdier!$B$11:$C$42, 2, FALSE)*2) -> 40 | AB80: =IF(G80="","",VLOOKUP(G80,Tabellverdier!$B$11:$C$42,2,FALSE)) -> 20 | AC80: =IF(H80="", "", AA80-(AA80*K80)/100) -> 33.33333333
J81: 0 | K81: =IF(H81="", "", 100 - I81 * 100 / Z81) ->  | L81: =IF(K81="", "", IF(K81>50, "Forbilde", "Ikke forbilde")) ->  | Z81: =J81*2 -> 0 | AA81: =IF(G81="", "", VLOOKUP(G81,Tabellverdier!$B$11:$C$42, 2, FALSE)*2) ->  | AB81: =IF(G81="","",VLOOKUP(G81,Tabellverdier!$B$11:$C$42,2,FALSE)) ->  | AC81: =IF(H81="", "", AA81-(AA81*K81)/100) -> 
J82: 0 | K82: =IF(H82="", "", 100 - I82 * 100 / Z82) ->  | L82: =IF(K82="", "", IF(K82>50, "Forbilde", "Ikke forbilde")) ->  | Z82: =J82*2 -> 0 | AA82: =IF(G82="", "", VLOOKUP(G82,Tabellverdier!$B$11:$C$42, 2, FALSE)*2) ->  | AB82: =IF(G82="","",VLOOKUP(G82,Tabellverdier!$B$11:$C$42,2,FALSE)) ->  | AC82: =IF(H82="", "", AA82-(AA82*K82)/100) -> 
J83: 0 | K83: =IF(H83="", "", 100 - I83 * 100 / Z83) ->  | L83: =IF(K83="", "", IF(K83>50, "Forbilde", "Ikke forbilde")) ->  | Z83: =J83*2 -> 0 | AA83: =IF(G83="", "", VLOOKUP(G83,Tabellverdier!$B$11:$C$42, 2, FALSE)*2) ->  | AB83: =IF(G83="","",VLOOKUP(G83,Tabellverdier!$B$11:$C$42,2,FALSE)) ->  | AC83: =IF(H83="", "", AA83-(AA83*K83)/100) -> 
J84: 0 | K84: =IF(H84="", "", 100 - I84 * 100 / Z84) ->  | L84: =IF(K84="", "", IF(K84>50, "Forbilde", "Ikke forbilde")) ->  | Z84: =J84*2 -> 0 | AA84: =IF(G84="", "", VLOOKUP(G84,Tabellverdier!$B$11:$C$42, 2, FALSE)*2) ->  | AB84: =IF(G84="","",VLOOKUP(G84,Tabellverdier!$B$11:$C$42,2,FALSE)) ->  | AC84: =IF(H84="", "", AA84-(AA84*K84)/100) -> 
J85: 0 | K85: =IF(H85="", "", 100 - I85 * 100 / Z85) ->  | L85: =IF(K85="", "", IF(K85>50, "Forbilde", "Ikke forbilde")) ->  | Z85: =J85*2 -> 0 | AA85: =IF(G85="", "", VLOOKUP(G85,Tabellverdier!$B$11:$C$42, 2, FALSE)*2) ->  | AB85: =IF(G85="","",VLOOKUP(G85,Tabellverdier!$B$11:$C$42,2,FALSE)) ->  | AC85: =IF(H85="", "", AA85-(AA85*K85)/100) -> 
J86: 0 | K86: =IF(H86="", "", 100 - I86 * 100 / Z86) ->  | L86: =IF(K86="", "", IF(K86>50, "Forbilde", "Ikke forbilde")) ->  | Z86: =J86*2 -> 0 | AA86: =IF(G86="", "", VLOOKUP(G86,Tabellverdier!$B$11:$C$42, 2, FALSE)*2) ->  | AB86: =IF(G86="","",VLOOKUP(G86,Tabellverdier!$B$11:$C$42,2,FALSE)) ->  | AC86: =IF(H86="", "", AA86-(AA86*K86)/100) -> 
J87: 0 | K87: =IF(H87="", "", 100 - I87 * 100 / Z87) ->  | L87: =IF(K87="", "", IF(K87>50, "Forbilde", "Ikke forbilde")) ->  | Z87: =J87*2 -> 0 | AA87: =IF(G87="", "", VLOOKUP(G87,Tabellverdier!$B$11:$C$42, 2, FALSE)*2) ->  | AB87: =IF(G87="","",VLOOKUP(G87,Tabellverdier!$B$11:$C$42,2,FALSE)) ->  | AC87: =IF(H87="", "", AA87-(AA87*K87)/100) -> 
J88: 0 | K88: =IF(H88="", "", 100 - I88 * 100 / Z88) ->  | L88: =IF(K88="", "", IF(K88>50, "Forbilde", "Ikke forbilde")) ->  | Z88: =J88*2 -> 0 | AA88: =IF(G88="", "", VLOOKUP(G88,Tabellverdier!$B$11:$C$42, 2, FALSE)*2) ->  | AB88: =IF(G88="","",VLOOKUP(G88,Tabellverdier!$B$11:$C$42,2,FALSE)) ->  | AC88: =IF(H88="", "", AA88-(AA88*K88)/100) -> 
J89: 0 | K89: =IF(H89="", "", 100 - I89 * 100 / Z89) ->  | L89: =IF(K89="", "", IF(K89>50, "Forbilde", "Ikke forbilde")) ->  | Z89: =J89*2 -> 0 | AA89: =IF(G89="", "", VLOOKUP(G89,Tabellverdier!$B$11:$C$42, 2, FALSE)*2) ->  | AB89: =IF(G89="","",VLOOKUP(G89,Tabellverdier!$B$11:$C$42,2,FALSE)) ->  | AC89: =IF(H89="", "", AA89-(AA89*K89)/100) -> 
J90: 0 | K90: =IF(H90="", "", 100 - I90 * 100 / Z90) ->  | L90: =IF(K90="", "", IF(K90>50, "Forbilde", "Ikke forbilde")) ->  | Z90: =J90*2 -> 0 | AA90: =IF(G90="", "", VLOOKUP(G90,Tabellverdier!$B$11:$C$42, 2, FALSE)*2) ->  | AB90: =IF(G90="","",VLOOKUP(G90,Tabellverdier!$B$11:$C$42,2,FALSE)) ->  | AC90: =IF(H90="", "", AA90-(AA90*K90)/100) -> 
J91: 0 | K91: =IF(H91="", "", 100 - I91 * 100 / Z91) ->  | L91: =IF(K91="", "", IF(K91>50, "Forbilde", "Ikke forbilde")) ->  | Z91: =J91*2 -> 0 | AA91: =IF(G91="", "", VLOOKUP(G91,Tabellverdier!$B$11:$C$42, 2, FALSE)*2) ->  | AB91: =IF(G91="","",VLOOKUP(G91,Tabellverdier!$B$11:$C$42,2,FALSE)) ->  | AC91: =IF(H91="", "", AA91-(AA91*K91)/100) -> 
J92: 0 | K92: =IF(H92="", "", 100 - I92 * 100 / Z92) ->  | L92: =IF(K92="", "", IF(K92>50, "Forbilde", "Ikke forbilde")) ->  | Z92: =J92*2 -> 0 | AA92: =IF(G92="", "", VLOOKUP(G92,Tabellverdier!$B$11:$C$42, 2, FALSE)*2) ->  | AB92: =IF(G92="","",VLOOKUP(G92,Tabellverdier!$B$11:$C$42,2,FALSE)) ->  | AC92: =IF(H92="", "", AA92-(AA92*K92)/100) -> 
J93: 0 | K93: =IF(H93="", "", 100 - I93 * 100 / Z93) ->  | L93: =IF(K93="", "", IF(K93>50, "Forbilde", "Ikke forbilde")) ->  | Z93: =J93*2 -> 0 | AA93: =IF(G93="", "", VLOOKUP(G93,Tabellverdier!$B$11:$C$42, 2, FALSE)*2) ->  | AB93: =IF(G93="","",VLOOKUP(G93,Tabellverdier!$B$11:$C$42,2,FALSE)) ->  | AC93: =IF(H93="", "", AA93-(AA93*K93)/100) -> 
J94: 0 | K94: =IF(H94="", "", 100 - I94 * 100 / Z94) ->  | L94: =IF(K94="", "", IF(K94>50, "Forbilde", "Ikke forbilde")) ->  | Z94: =J94*2 -> 0 | AA94: =IF(G94="", "", VLOOKUP(G94,Tabellverdier!$B$11:$C$42, 2, FALSE)*2) ->  | AB94: =IF(G94="","",VLOOKUP(G94,Tabellverdier!$B$11:$C$42,2,FALSE)) ->  | AC94: =IF(H94="", "", AA94-(AA94*K94)/100) -> 
J95: 0 | K95: =IF(H95="", "", 100 - I95 * 100 / Z95) ->  | L95: =IF(K95="", "", IF(K95>50, "Forbilde", "Ikke forbilde")) ->  | Z95: =J95*2 -> 0 | AA95: =IF(G95="", "", VLOOKUP(G95,Tabellverdier!$B$11:$C$42, 2, FALSE)*2) ->  | AB95: =IF(G95="","",VLOOKUP(G95,Tabellverdier!$B$11:$C$42,2,FALSE)) ->  | AC95: =IF(H95="", "", AA95-(AA95*K95)/100) -> 
J96: 0 | K96: =IF(H96="", "", 100 - I96 * 100 / Z96) ->  | L96: =IF(K96="", "", IF(K96>50, "Forbilde", "Ikke forbilde")) ->  | Z96: =J96*2 -> 0 | AA96: =IF(G96="", "", VLOOKUP(G96,Tabellverdier!$B$11:$C$42, 2, FALSE)*2) ->  | AB96: =IF(G96="","",VLOOKUP(G96,Tabellverdier!$B$11:$C$42,2,FALSE)) ->  | AC96: =IF(H96="", "", AA96-(AA96*K96)/100) -> 
J97: 0 | K97: =IF(H97="", "", 100 - I97 * 100 / Z97) ->  | L97: =IF(K97="", "", IF(K97>50, "Forbilde", "Ikke forbilde")) ->  | Z97: =J97*2 -> 0 | AA97: =IF(G97="", "", VLOOKUP(G97,Tabellverdier!$B$11:$C$42, 2, FALSE)*2) ->  | AB97: =IF(G97="","",VLOOKUP(G97,Tabellverdier!$B$11:$C$42,2,FALSE)) ->  | AC97: =IF(H97="", "", AA97-(AA97*K97)/100) -> 
C99: 25 % av bygningsmassens transportprosjekter skal være fullverdige forbildeprosjekter med 50 % utslippsreduksjon.
C100: Transportutslippene samlet skal ha en utslippsreduksjon på 25 %.
C101: Hvis ZERO-T velges som tilvalg skal utslippene fra transport ha en samlet reduksjon på 50 % og alle prosjektene være fullverdige forbildeprosjekter.
C102: Transport | D102: Resultat | E102: Krav | F102: Hvis tilvalg
C103: Forbildeareal | D103: =F245*100/F244/100 -> 0.2592592593 | E103: 0.25 | F103: 0.5
C104: CO2-reduksjon | D104: =SUMPRODUCT(H78:H97,K78:K97)/F244/100 -> 0.2816358025 | E104: 0.25 | F104: 0.5
B119: Landskap | C119: Steg 2: Registrering av Landskap etter ZERO-L V1.3
C120: Fyll ut gule felter i tabellen.
C121: Bruk beregningsverktøy for ZERO-L for å finne prosjektets verdi og referanselandskapets utslipp.
C122: Veiledning for utfylling av ZERO-L verktøyet er beskrevet i ZERO-L. .
C123: Reduzer har modul for ZERO-L metodikk og kan benyttes. Det må lages både referanselandskap og et landskap med klimatiltak som to ulike versjoner.
I124: kgCO2e/m2 | K124: Viser måloppnåelsen | Z124: % (Produksjon av figur)
C125: Delområde/Byggetrinn | D125: Prosjektnavn | E125: Velg Landskapstype | F125: Type beregning | G125: År ferdigstillelse | H125: BRA | I125: Prosjektets verdi | J125: Referanse- landskap | K125: Prosjektets reduksjon ift Pariskravet i % | L125: Antatt Forbilde | Z125: FutureBuilt Kravsnivå | AA125: Pariskravet | AB125: FB Kravsnivå | AC125: Prosjektets plassering kurve
C126: Byggetrinn 1 | D126: Landskap 1 | E126: Park | F126: Tidlig design | G126: 2030 | H126: 4000 | I126: 22 | J126: 50 | K126: =IF(H126="", "", 100 - I126 * 100 / J126) -> 56 | L126: =IF(K126="", "", IF(K126>50, "Forbilde", "Ikke forbilde")) -> Forbilde | Z126: =J126/2 -> 25 | AA126: =IF(G126="", "", VLOOKUP(G126,Tabellverdier!$B$11:$C$42, 2, FALSE)*2) -> 50 | AB126: =IF(G126="","",VLOOKUP(G126,Tabellverdier!$B$11:$C$42,2,FALSE)) -> 25 | AC126: =IF(H126="", "", AA126-(AA126*K126)/100) -> 22
C127: Byggetrinn 1 | D127: Landskap 2 | E127: Torg | F127: Sen design | G127: 2032 | H127: 5000 | I127: 65 | J127: 70 | K127: =IF(H127="", "", 100 - I127 * 100 / J127) -> 7.142857143 | L127: =IF(K127="", "", IF(K127>50, "Forbilde", "Ikke forbilde")) -> Ikke forbilde | Z127: =J127/2 -> 35 | AA127: =IF(G127="", "", VLOOKUP(G127,Tabellverdier!$B$11:$C$42, 2, FALSE)*2) -> 46 | AB127: =IF(G127="","",VLOOKUP(G127,Tabellverdier!$B$11:$C$42,2,FALSE)) -> 23 | AC127: =IF(H127="", "", AA127-(AA127*K127)/100) -> 42.71428571
C128: Byggetrinn 2 | D128: Landskap 3 | E128: Idrettsanlegg | F128: Tidlig design | G128: 2037 | H128: 5000 | I128: 18 | J128: 22 | K128: =IF(H128="", "", 100 - I128 * 100 / J128) -> 18.18181818 | L128: =IF(K128="", "", IF(K128>50, "Forbilde", "Ikke forbilde")) -> Ikke forbilde | Z128: =J128/2 -> 11 | AA128: =IF(G128="", "", VLOOKUP(G128,Tabellverdier!$B$11:$C$42, 2, FALSE)*2) -> 36 | AB128: =IF(G128="","",VLOOKUP(G128,Tabellverdier!$B$11:$C$42,2,FALSE)) -> 18 | AC128: =IF(H128="", "", AA128-(AA128*K128)/100) -> 29.45454545
K129: =IF(H129="", "", 100 - I129 * 100 / J129) ->  | L129: =IF(K129="", "", IF(K129>50, "Forbilde", "Ikke forbilde")) ->  | Z129: =J129/2 -> 0 | AA129: =IF(G129="", "", VLOOKUP(G129,Tabellverdier!$B$11:$C$42, 2, FALSE)*2) ->  | AB129: =IF(G129="","",VLOOKUP(G129,Tabellverdier!$B$11:$C$42,2,FALSE)) ->  | AC129: =IF(H129="", "", AA129-(AA129*K129)/100) -> 
Z130: =J130/2 -> 0 | AA130: =IF(G130="", "", VLOOKUP(G130,Tabellverdier!$B$11:$C$42, 2, FALSE)*2) ->  | AB130: =IF(G130="","",VLOOKUP(G130,Tabellverdier!$B$11:$C$42,2,FALSE)) ->  | AC130: =IF(H130="", "", AA130-(AA130*K130)/100) -> 
Z131: =J131/2 -> 0 | AA131: =IF(G131="", "", VLOOKUP(G131,Tabellverdier!$B$11:$C$42, 2, FALSE)*2) ->  | AB131: =IF(G131="","",VLOOKUP(G131,Tabellverdier!$B$11:$C$42,2,FALSE)) ->  | AC131: =IF(H131="", "", AA131-(AA131*K131)/100) -> 
Z132: =J132/2 -> 0 | AA132: =IF(G132="", "", VLOOKUP(G132,Tabellverdier!$B$11:$C$42, 2, FALSE)*2) ->  | AB132: =IF(G132="","",VLOOKUP(G132,Tabellverdier!$B$11:$C$42,2,FALSE)) ->  | AC132: =IF(H132="", "", AA132-(AA132*K132)/100) -> 
Z133: =J133/2 -> 0 | AA133: =IF(G133="", "", VLOOKUP(G133,Tabellverdier!$B$11:$C$42, 2, FALSE)*2) ->  | AB133: =IF(G133="","",VLOOKUP(G133,Tabellverdier!$B$11:$C$42,2,FALSE)) ->  | AC133: =IF(H133="", "", AA133-(AA133*K133)/100) -> 
Z134: =J134/2 -> 0 | AA134: =IF(G134="", "", VLOOKUP(G134,Tabellverdier!$B$11:$C$42, 2, FALSE)*2) ->  | AB134: =IF(G134="","",VLOOKUP(G134,Tabellverdier!$B$11:$C$42,2,FALSE)) ->  | AC134: =IF(H134="", "", AA134-(AA134*K134)/100) -> 
Z135: =J135/2 -> 0 | AA135: =IF(G135="", "", VLOOKUP(G135,Tabellverdier!$B$11:$C$42, 2, FALSE)*2) ->  | AB135: =IF(G135="","",VLOOKUP(G135,Tabellverdier!$B$11:$C$42,2,FALSE)) ->  | AC135: =IF(H135="", "", AA135-(AA135*K135)/100) -> 
Z136: =J136/2 -> 0 | AA136: =IF(G136="", "", VLOOKUP(G136,Tabellverdier!$B$11:$C$42, 2, FALSE)*2) ->  | AB136: =IF(G136="","",VLOOKUP(G136,Tabellverdier!$B$11:$C$42,2,FALSE)) ->  | AC136: =IF(H136="", "", AA136-(AA136*K136)/100) -> 
Z137: =J137/2 -> 0 | AA137: =IF(G137="", "", VLOOKUP(G137,Tabellverdier!$B$11:$C$42, 2, FALSE)*2) ->  | AB137: =IF(G137="","",VLOOKUP(G137,Tabellverdier!$B$11:$C$42,2,FALSE)) ->  | AC137: =IF(H137="", "", AA137-(AA137*K137)/100) -> 
Z138: =J138/2 -> 0 | AA138: =IF(G138="", "", VLOOKUP(G138,Tabellverdier!$B$11:$C$42, 2, FALSE)*2) ->  | AB138: =IF(G138="","",VLOOKUP(G138,Tabellverdier!$B$11:$C$42,2,FALSE)) ->  | AC138: =IF(H138="", "", AA138-(AA138*K138)/100) -> 
Z139: =J139/2 -> 0 | AA139: =IF(G139="", "", VLOOKUP(G139,Tabellverdier!$B$11:$C$42, 2, FALSE)*2) ->  | AB139: =IF(G139="","",VLOOKUP(G139,Tabellverdier!$B$11:$C$42,2,FALSE)) ->  | AC139: =IF(H139="", "", AA139-(AA139*K139)/100) -> 
Z140: =J140/2 -> 0 | AA140: =IF(G140="", "", VLOOKUP(G140,Tabellverdier!$B$11:$C$42, 2, FALSE)*2) ->  | AB140: =IF(G140="","",VLOOKUP(G140,Tabellverdier!$B$11:$C$42,2,FALSE)) ->  | AC140: =IF(H140="", "", AA140-(AA140*K140)/100) -> 
Z141: =J141/2 -> 0 | AA141: =IF(G141="", "", VLOOKUP(G141,Tabellverdier!$B$11:$C$42, 2, FALSE)*2) ->  | AB141: =IF(G141="","",VLOOKUP(G141,Tabellverdier!$B$11:$C$42,2,FALSE)) ->  | AC141: =IF(H141="", "", AA141-(AA141*K141)/100) -> 
Z142: =J142/2 -> 0 | AA142: =IF(G142="", "", VLOOKUP(G142,Tabellverdier!$B$11:$C$42, 2, FALSE)*2) ->  | AB142: =IF(G142="","",VLOOKUP(G142,Tabellverdier!$B$11:$C$42,2,FALSE)) ->  | AC142: =IF(H142="", "", AA142-(AA142*K142)/100) -> 
Z143: =J143/2 -> 0 | AA143: =IF(G143="", "", VLOOKUP(G143,Tabellverdier!$B$11:$C$42, 2, FALSE)*2) ->  | AB143: =IF(G143="","",VLOOKUP(G143,Tabellverdier!$B$11:$C$42,2,FALSE)) ->  | AC143: =IF(H143="", "", AA143-(AA143*K143)/100) -> 
Z144: =J144/2 -> 0 | AA144: =IF(G144="", "", VLOOKUP(G144,Tabellverdier!$B$11:$C$42, 2, FALSE)*2) ->  | AB144: =IF(G144="","",VLOOKUP(G144,Tabellverdier!$B$11:$C$42,2,FALSE)) ->  | AC144: =IF(H144="", "", AA144-(AA144*K144)/100) -> 
Z145: =J145/2 -> 0 | AA145: =IF(G145="", "", VLOOKUP(G145,Tabellverdier!$B$11:$C$42, 2, FALSE)*2) ->  | AB145: =IF(G145="","",VLOOKUP(G145,Tabellverdier!$B$11:$C$42,2,FALSE)) ->  | AC145: =IF(H145="", "", AA145-(AA145*K145)/100) -> 
C148: 25 % av landskapene skal være fullverdige forbildeprosjekter med 50 % utslippsreduksjon.
C149: Landskapene samlet skal ha en utslippsreduksjon på 25 %.
C150: Hvis ZERO-L velges som tilvalg skal landskapene ha en samlet utslippsreduksjon på 50 % og alle landskapene være fullverdige forbildeprosjekter.
C151: Landskap | D151: Resultat | E151: Krav | F151: Hvis tilvalg
C152: Forbildeareal | D152: =E245*100/E244/100 -> 0.2857142857 | E152: 0.25 | F152: 0.5
C153: CO2-reduksjon, vektet areal | D153: =SUMPRODUCT(H126:H145,K126:K145)/E244/100 -> 0.250445269 | E153: 0.25 | F153: 0.5
B169: Infrastruktur | C169: Steg 4: Registrering av infrastruktur
C170: Fyll ut gule felter i tabellen.
C171: Det foreligger pdd. Ingen verktøy for beregning av infrastruktur.
C172: For å beregne utslipp kan ZERO-B V3.0 beregningsverktøy benyttes.
C173: Referansen vil være et tilsvarende prosjekt med standard løsningsvalg.
C174: ZERO-O beskriver veiledning for hvordan.
I176: kgCO2e/m2 | K176: Viser måloppnåelsen | Z176: % (Produksjon av figur)
C177: Byggetrinn | D177: Byggetrinn | E177: Type infrastruktur | F177: Type beregning | G177: År ferdigstillelse | H177: Løpemeter | I177: Prosjektets verdi | J177: Referanse infrastruktur | K177: Prosjektets reduksjon ift Pariskravet i % | L177: Antatt Forbilde | Z177: FutureBuilt Kravsnivå | AA177: Pariskravet | AB177: FB Kravsnivå | AC177: Prosjektets plassering kurve
C178: Byggetrinn 1 | D178: Infrastruktur 1 | E178: Annen infrastruktur | F178: Sen design | G178: 2027 | H178: 800 | I178: 200 | J178: 500 | K178: =IF(J178=0, "", 100-I178*100/J178) -> 60 | L178: =IF(K178="", "", IF(K178>50, "Forbilde", "Ikke forbilde")) -> Forbilde | Z178: =J178/2 -> 250 | AA178: =IF(G178="", "", VLOOKUP(G178,Tabellverdier!$B$11:$C$42, 2, FALSE)*2) -> 65 | AB178: =IF(G178="","",VLOOKUP(G178,Tabellverdier!$B$11:$C$42,2,FALSE)) -> 32.5 | AC178: =IF(G178="", "", AA178-(AA178*K178)/100) -> 26
C179: Byggetrinn 1 | D179: Infrastruktur 2 | E179: IKT | F179: Sen design | G179: 2034 | H179: 1000 | I179: 900 | J179: 1000 | K179: =IF(J179=0, "", 100-I179*100/J179) -> 10 | L179: =IF(K179="", "", IF(K179>50, "Forbilde", "Ikke forbilde")) -> Ikke forbilde | Z179: =J179/2 -> 500 | AA179: =IF(G179="", "", VLOOKUP(G179,Tabellverdier!$B$11:$C$42, 2, FALSE)*2) -> 42 | AB179: =IF(G179="","",VLOOKUP(G179,Tabellverdier!$B$11:$C$42,2,FALSE)) -> 21 | AC179: =IF(G179="", "", AA179-(AA179*K179)/100) -> 37.8
C180: Byggetrinn 2 | D180: Infrastruktur 3 | E180: Energi | F180: Tidlig design | G180: 2040 | H180: 1500 | I180: 450 | J180: 500 | K180: =IF(J180=0, "", 100-I180*100/J180) -> 10 | L180: =IF(K180="", "", IF(K180>50, "Forbilde", "Ikke forbilde")) -> Ikke forbilde | Z180: =J180/2 -> 250 | AA180: =IF(G180="", "", VLOOKUP(G180,Tabellverdier!$B$11:$C$42, 2, FALSE)*2) -> 30 | AB180: =IF(G180="","",VLOOKUP(G180,Tabellverdier!$B$11:$C$42,2,FALSE)) -> 15 | AC180: =IF(G180="", "", AA180-(AA180*K180)/100) -> 27
K181: =IF(J181=0, "", 100-I181*100/J181) ->  | L181: =IF(K181="", "", IF(K181>50, "Forbilde", "Ikke forbilde")) ->  | Z181: =J181/2 -> 0 | AA181: =IF(G181="", "", VLOOKUP(G181,Tabellverdier!$B$11:$C$42, 2, FALSE)*2) ->  | AB181: =IF(G181="","",VLOOKUP(G181,Tabellverdier!$B$11:$C$42,2,FALSE)) ->  | AC181: =IF(G181="", "", AA181-(AA181*K181)/100) -> 
Z182: =J182/2 -> 0 | AA182: =IF(G182="", "", VLOOKUP(G182,Tabellverdier!$B$11:$C$42, 2, FALSE)*2) ->  | AB182: =IF(G182="","",VLOOKUP(G182,Tabellverdier!$B$11:$C$42,2,FALSE)) ->  | AC182: =IF(G182="", "", AA182-(AA182*K182)/100) -> 
Z183: =J183/2 -> 0 | AA183: =IF(G183="", "", VLOOKUP(G183,Tabellverdier!$B$11:$C$42, 2, FALSE)*2) ->  | AB183: =IF(G183="","",VLOOKUP(G183,Tabellverdier!$B$11:$C$42,2,FALSE)) ->  | AC183: =IF(G183="", "", AA183-(AA183*K183)/100) -> 
Z184: =J184/2 -> 0 | AA184: =IF(G184="", "", VLOOKUP(G184,Tabellverdier!$B$11:$C$42, 2, FALSE)*2) ->  | AB184: =IF(G184="","",VLOOKUP(G184,Tabellverdier!$B$11:$C$42,2,FALSE)) ->  | AC184: =IF(G184="", "", AA184-(AA184*K184)/100) -> 
Z185: =J185/2 -> 0 | AA185: =IF(G185="", "", VLOOKUP(G185,Tabellverdier!$B$11:$C$42, 2, FALSE)*2) ->  | AB185: =IF(G185="","",VLOOKUP(G185,Tabellverdier!$B$11:$C$42,2,FALSE)) ->  | AC185: =IF(G185="", "", AA185-(AA185*K185)/100) -> 
Z186: =J186/2 -> 0 | AA186: =IF(G186="", "", VLOOKUP(G186,Tabellverdier!$B$11:$C$42, 2, FALSE)*2) ->  | AB186: =IF(G186="","",VLOOKUP(G186,Tabellverdier!$B$11:$C$42,2,FALSE)) ->  | AC186: =IF(G186="", "", AA186-(AA186*K186)/100) -> 
Z187: =J187/2 -> 0 | AA187: =IF(G187="", "", VLOOKUP(G187,Tabellverdier!$B$11:$C$42, 2, FALSE)*2) ->  | AB187: =IF(G187="","",VLOOKUP(G187,Tabellverdier!$B$11:$C$42,2,FALSE)) ->  | AC187: =IF(G187="", "", AA187-(AA187*K187)/100) -> 
Z188: =J188/2 -> 0 | AA188: =IF(G188="", "", VLOOKUP(G188,Tabellverdier!$B$11:$C$42, 2, FALSE)*2) ->  | AB188: =IF(G188="","",VLOOKUP(G188,Tabellverdier!$B$11:$C$42,2,FALSE)) ->  | AC188: =IF(G188="", "", AA188-(AA188*K188)/100) -> 
Z189: =J189/2 -> 0 | AA189: =IF(G189="", "", VLOOKUP(G189,Tabellverdier!$B$11:$C$42, 2, FALSE)*2) ->  | AB189: =IF(G189="","",VLOOKUP(G189,Tabellverdier!$B$11:$C$42,2,FALSE)) ->  | AC189: =IF(G189="", "", AA189-(AA189*K189)/100) -> 
Z190: =J190/2 -> 0 | AA190: =IF(G190="", "", VLOOKUP(G190,Tabellverdier!$B$11:$C$42, 2, FALSE)*2) ->  | AB190: =IF(G190="","",VLOOKUP(G190,Tabellverdier!$B$11:$C$42,2,FALSE)) ->  | AC190: =IF(G190="", "", AA190-(AA190*K190)/100) -> 
Z191: =J191/2 -> 0 | AA191: =IF(G191="", "", VLOOKUP(G191,Tabellverdier!$B$11:$C$42, 2, FALSE)*2) ->  | AB191: =IF(G191="","",VLOOKUP(G191,Tabellverdier!$B$11:$C$42,2,FALSE)) ->  | AC191: =IF(G191="", "", AA191-(AA191*K191)/100) -> 
Z192: =J192/2 -> 0 | AA192: =IF(G192="", "", VLOOKUP(G192,Tabellverdier!$B$11:$C$42, 2, FALSE)*2) ->  | AB192: =IF(G192="","",VLOOKUP(G192,Tabellverdier!$B$11:$C$42,2,FALSE)) ->  | AC192: =IF(G192="", "", AA192-(AA192*K192)/100) -> 
Z193: =J193/2 -> 0 | AA193: =IF(G193="", "", VLOOKUP(G193,Tabellverdier!$B$11:$C$42, 2, FALSE)*2) ->  | AB193: =IF(G193="","",VLOOKUP(G193,Tabellverdier!$B$11:$C$42,2,FALSE)) ->  | AC193: =IF(G193="", "", AA193-(AA193*K193)/100) -> 
Z194: =J194/2 -> 0 | AA194: =IF(G194="", "", VLOOKUP(G194,Tabellverdier!$B$11:$C$42, 2, FALSE)*2) ->  | AB194: =IF(G194="","",VLOOKUP(G194,Tabellverdier!$B$11:$C$42,2,FALSE)) ->  | AC194: =IF(G194="", "", AA194-(AA194*K194)/100) -> 
Z195: =J195/2 -> 0 | AA195: =IF(G195="", "", VLOOKUP(G195,Tabellverdier!$B$11:$C$42, 2, FALSE)*2) ->  | AB195: =IF(G195="","",VLOOKUP(G195,Tabellverdier!$B$11:$C$42,2,FALSE)) ->  | AC195: =IF(G195="", "", AA195-(AA195*K195)/100) -> 
Z196: =J196/2 -> 0 | AA196: =IF(G196="", "", VLOOKUP(G196,Tabellverdier!$B$11:$C$42, 2, FALSE)*2) ->  | AB196: =IF(G196="","",VLOOKUP(G196,Tabellverdier!$B$11:$C$42,2,FALSE)) ->  | AC196: =IF(G196="", "", AA196-(AA196*K196)/100) -> 
Z197: =J197/2 -> 0 | AA197: =IF(G197="", "", VLOOKUP(G197,Tabellverdier!$B$11:$C$42, 2, FALSE)*2) ->  | AB197: =IF(G197="","",VLOOKUP(G197,Tabellverdier!$B$11:$C$42,2,FALSE)) ->  | AC197: =IF(G197="", "", AA197-(AA197*K197)/100) -> 
C199: 25 % av infrastrukturen skal være fullverdige forbildeprosjekter med 50 % utslippsreduksjon.
C200: Infrastrukturutslippene samlet skal ha en utslippsreduksjon på 25 %.
C202: Infrastruktur | D202: Resultat | E202: Krav
C203: Forbildeareal | D203: =G245*100/G244/100 -> 0.2424242424 | E203: 0.25 | F203: Viser hvor stor andel av infrastrukturprosjektene som er fullverdig forbildeprosjekt
C204: CO2-reduksjon | D204: =SUMPRODUCT(H178:H197,K178:K197)/G244/100 -> 0.2212121212 | E204: 0.25 | F204: Viser resultatet til infrastrukturprosjektene samlet etter vektet løpemeter
B218: Samlet resultat
C219: Steg 5: Samlet måloppnåelse
C221: ZERO-O Hovedkriterium | K221: Måloppnåelse
C222: 1. I et FutureBuilt forbildeområde skal minst 25 prosent av bygg (inkludert transport i drift), landskap og infrastruktur være fullverdige FutureBuilt forbildeprosjekter | K222: =E234/D234 -> 0.2663656885 | L222: 0.25
C223: 2. Området skal som helhet ha minimum 25 prosent lavere klimagassutslipp enn Paris-kravene fra bygningsmasse, transport i drift, landskap og infrastruktur. | K223: =J234 -> 0.2271710641 | L223: 0.25
D228: Arealer | I228: Utslippsreduksjoner samlet | K228: Totalutslipp (tonn)
C229: Utslippskategorier | D229: Samlet areal | E229: Forbildeareal | F229: Ikke forbildeareal | G229: Krav forbildeareal | H229: Resultat forbildeareal | I229: Krav utslippsreduksjon | J229: Resultat utslippsreduksjon | K229: Område | L229: Paris-kravet
C230: Bygg | D230: =D244 -> 13500 | E230: =D245 -> 3500 | F230: =D230-E230 -> 10000 | G230: 0.25 | H230: =(E230/D230) -> 0.2592592593 | I230: 0.25 | J230: =D64 -> 0.245473251 | K230: =D246/1000 -> 4730 | L230: =D247/1000 -> 6200 | M230: tonn CO2e
C231: Landskap | D231: =E244 -> 14000 | E231: =E245 -> 4000 | F231: =D231-E231 -> 10000 | G231: 0.25 | H231: =(E231/D231) -> 0.2857142857 | I231: 0.25 | J231: =D153 -> 0.250445269 | K231: =E246/1000 -> 503 | L231: =E247/1000 -> 660 | M231: tonn CO2e
C232: Transport | D232: =F244 -> 13500 | E232: =F245 -> 3500 | F232: =D232-E232 -> 10000 | G232: 0.25 | H232: =(E232/D232) -> 0.2592592593 | I232: 0.25 | J232: =D104 -> 0.2816358025 | K232: =F246/1000 -> 7775 | L232: =F247/1000 -> 10066.66667 | M232: tonn CO2e
C233: Infrastruktur | D233: =G244 -> 3300 | E233: =G245 -> 800 | F233: =D233-E233 -> 2500 | G233: 0.25 | H233: =(E233/D233) -> 0.2424242424 | I233: 0.25 | J233: =D204 -> 0.2212121212 | K233: =G246/1000 -> 1735 | L233: =G247/1000 -> 2150 | M233: tonn CO2e
C234: Samlet | D234: =SUM(D230:D233) -> 44300 | E234: =SUM(E230:E233) -> 11800 | I234: 0.25 | J234: =100%-K234/L234 -> 0.2271710641 | K234: =SUM(K230:K233) -> 14743 | L234: =SUM(L230:L233) -> 19076.66667 | M234: tonn CO2e
D243: Bygningsmasse | E243: Landskapet | F243: Transport | G243: Infrastruktur
C244: Areal | D244: =SUM(H39:H58) -> 13500 | E244: =SUM(H126:H145) -> 14000 | F244: =SUM(H78:H97) -> 13500 | G244: =SUM(H178:H197) -> 3300 | H244: m2
C245: Forbildeareal | D245: =SUMIF(L39:L58, "Forbilde", H39:H58) -> 3500 | E245: =SUMIF(L126:L145, "Forbilde", H126:H145) -> 4000 | F245: =SUMIF(L78:L97, "Forbilde", H78:H97) -> 3500 | G245: =SUMIF(L178:L197, "Forbilde", H178:H197) -> 800 | H245: m2
C246: Totalutslipp prosjekter | D246: =SUMPRODUCT(I39:I58*H39:H58) -> 4730000 | E246: =SUMPRODUCT(I126:I145*H126:H145) -> 503000 | F246: =SUMPRODUCT(I78:I97*H78:H97) -> 7775000 | G246: =SUMPRODUCT(I178:I197*H178:H197) -> 1735000 | H246: kgCO2e
C247: Total Pariskravet | D247: =SUMPRODUCT(Z39:Z58*H39:H58) -> 6200000 | E247: =SUMPRODUCT(J126:J145*H126:H145) -> 660000 | F247: =SUMPRODUCT(Z78:Z97*H78:H97) -> 10066666.67 | G247: =SUMPRODUCT(J178:J197*H178:H197) -> 2150000 | H247: kgCO2e

Sheet Transport flerfunksjon
C2: Beregning for flerfunksjonelle byggningers transportutslipp
C4: Veiledning
D6: Fyll inn gule felter
D7: Oransje felter gir inputverdier til ZERO-O Samlet beregning (steg 3)
C9: Dersom prosjektet ditt består av flere bygningstyper, skal disse ha tilpassede kravsnivå. Under kan du fylle inn opp til tre ulike bygningstyper.
C10: Fyll inn verdier fra resultatet av en ZERO-T V4 (publiseres 2025) beregning i tabellene under.
C11: Feltet du skal hente ut data fra er nederst i ZERO-T beregningsverktøy og visgt i Figur 1.
C12: Lenke kommer:
C14: Velg bygningskategori fra nedtrekksmeny. Fyll inn oppvarmet BRA (m2).
C15: Prosjektets verd i prosjekteringsfase: Bruk punkt 6. med alle prosjektets tiltak for mobilitet
C16: Prosjektets verdi i drift: Bruk punkt 7. med egen RVU
C17: FutureBuilt Kravsnivå: Bruk punkt 0 i tabellen "FutureBuilts mål"
C18: Velg flerfunksjonell i nedtrekksmenyen i områdeberegnigen og skriv over FB kravsnivå og Paris-kravet i tabellen for transportutslipp
C20: Figur 1: Figuren viser utklipp fra ZERO-T beregningsverktøy, hvor verdiene du skal bruke er nederst i beregningsverktøyet.
C39: Første flerfunksjonelle bygning
D40: Bygningstype 1 | E40: Bygningstype 2 | F40: Bygningstype 3 | H40: Ferdigstillelsesår | I40: 2030
C41: Bygningstype | D41: Kontor | E41: Forretning/Næring | H41: Samlet areal | I41: =SUM(D42:F42) -> 1500 | J41: m2
C42: Oppvarmet bruksareal (BRA) | D42: 1000 | E42: 500 | H42: Prosjektets verdi | I42: =(D42*D43+E42*E43+F42*F43)/I41 -> 166.6666667 | J42: kgCO2e/m2 | K42: Input til Steg 3.
C43: Punkt 6 eller 7: Prosjektets verdi | D43: 200 | E43: 100 | H43: Pariskravet | I43: =I42*2 -> 333.3333333 | J43: kgCO2e/m2
C44: Punkt 0: FutureBuilt kravsnivå | D44: 300 | E44: 200 | H44: FutureBuilts mål | I44: =(D42*D44+E42*E44+F42*F44)/I41 -> 266.6666667 | J44: kgCO2e/m2 | K44: Input til Steg 3.
C49: Andre flerfunksjonelle bygning
D50: Bygningstype 1 | E50: Bygningstype 2 | F50: Bygningstype 3 | H50: Ferdigstillelsesår | I50: 2035
C51: Bygningstype | D51: Kontor | E51: Forretning/Næring | F51: Velg bygningstype | H51: Samlet areal | I51: =SUM(D52:F52) -> 6000 | J51: m2
C52: Oppvarmet bruksareal (BRA) | D52: 5000 | E52: 1000 | F52: 0 | H52: Prosjektets verdi | I52: =(D52*D53+E52*E53+F52*F53)/I51 -> 258.3333333 | J52: kgCO2e/m2 | K52: Input til Steg 3.
C53: Punkt 6 eller 7: Prosjektets verdi | D53: 250 | E53: 300 | F53: 0 | H53: Pariskravet | I53: =I52*2 -> 516.6666667 | J53: kgCO2e/m2
C54: Punkt 0: FutureBuilt kravsnivå | D54: 300 | E54: 300 | F54: 0 | H54: FutureBuilts mål | I54: =(D52*D54+E52*E54+F52*F54)/I51 -> 300 | J54: kgCO2e/m2 | K54: Input til Steg 3.
C61: Tredje flerfunksjonelle bygning
D62: Bygningstype 1 | E62: Bygningstype 2 | F62: Bygningstype 3 | H62: Ferdigstillelsesår | I62: 2030
C63: Bygningstype | D63: Boligblokk | E63: Forretning/Næring | F63: Velg bygningstype | H63: Samlet areal | I63: =SUM(D64:F64) -> 2200 | J63: m2
C64: Oppvarmet bruksareal (BRA) | D64: 1000 | E64: 500 | F64: 700 | H64: Prosjektets verdi | I64: =(D64*D65+E64*E65+F64*F65)/I63 -> 177.2727273 | J64: kgCO2e/m2 | K64: Input til Steg 3.
C65: Punkt 6 eller 7: Prosjektets verdi | D65: 200 | E65: 100 | F65: 200 | H65: Pariskravet | I65: =I64*2 -> 354.5454545 | J65: kgCO2e/m2
C66: Punkt 0: FutureBuilt kravsnivå | D66: 300 | E66: 200 | F66: 360 | H66: FutureBuilts mål | I66: =(D64*D66+E64*E66+F64*F66)/I63 -> 296.3636364 | J66: kgCO2e/m2 | K66: Input til Steg 3.

Sheet Tabellverdier
B3: Beregning av Paris-kurven og linje for måloppnåelse
B9: Tabell 5: Beregner måloppnåelse opp mot pariskravet
C10: Prosent | E10: Samlet måloppnåelse | G10: Krav
C11: Paris-kravet | D11: ZERO-ambisjon | F11: ="Resultat: "&TEXT('ZERO-O Samlet beregning'!K223,"0,0%")&"" -> Resultat: 22,7% | H11: Områdemål: 25%
B12: 2020 | C12: 50 | D12: 50 | E12: ='ZERO-O Samlet beregning'!$J$234*100 -> 22.71710641 | F12: =C12+D12-E12 -> 77.28289359 | G12: 25 | H12: =C12+D12-G12 -> 75
B13: 2021 | C13: 47.5 | D13: 47.5 | E13: =E12-($E$12-$E$22)/10 -> 21.58125109 | F13: =C13+D13-E13 -> 73.41874891 | G13: =G12-($G$12-$G$22)/10 -> 23.75 | H13: =C13+D13-G13 -> 71.25
B14: 2022 | C14: 45 | D14: 45 | E14: =E13-($E$12-$E$22)/10 -> 20.44539577 | F14: 69.55460423 | G14: =G13-($G$12-$G$22)/10 -> 22.5 | H14: 67.5
B15: 2023 | C15: 42.5 | D15: 42.5 | E15: =E14-($E$12-$E$22)/10 -> 19.30954045 | F15: 65.69045955 | G15: 21.25 | H15: 63.75
B16: 2024 | C16: 40 | D16: 40 | E16: 18.17368513 | F16: 61.82631487 | G16: 20 | H16: 60
B17: 2025 | C17: 37.5 | D17: 37.5 | E17: 17.03782981 | F17: 57.96217019 | G17: 18.75 | H17: 56.25
B18: 2026 | C18: 35 | D18: 35 | E18: 15.90197449 | F18: 54.09802551 | G18: 17.5 | H18: 52.5
B19: 2027 | C19: 32.5 | D19: 32.5 | E19: 14.76611917 | F19: 50.23388083 | G19: 16.25 | H19: 48.75
B20: 2028 | C20: 30 | D20: 30 | E20: 13.63026385 | F20: 46.36973615 | G20: 15 | H20: 45
B21: 2029 | C21: 27.5 | D21: 27.5 | E21: =E20-($E$12-$E$22)/10 -> 12.49440853 | F21: 42.50559147 | G21: 13.75 | H21: 41.25
B22: 2030 | C22: 25 | D22: 25 | E22: =E12/2 -> 11.35855321 | F22: =C22+D22-E22 -> 38.64144679 | G22: =G12/2 -> 12.5 | H22: =C22+D22-G22 -> 37.5
B23: 2031 | C23: 24 | D23: 24 | E23: =E22-($E$22-$E$42)/20 -> 10.90421108 | F23: 37.09578892 | G23: =G22-($G$22-$G$42)/20 -> 12 | H23: 36
B24: 2032 | C24: 23 | D24: 23 | E24: =E23-($E$22-$E$42)/20 -> 10.44986895 | F24: 35.55013105 | G24: =G23-($G$22-$G$42)/20 -> 11.5 | H24: 34.5
B25: 2033 | C25: 22 | D25: 22 | E25: 9.995526822 | F25: 34.00447318 | G25: 11 | H25: 33
B26: 2034 | C26: 21 | D26: 21 | E26: 9.541184693 | F26: 32.45881531 | G26: 10.5 | H26: 31.5
B27: 2035 | C27: 20 | D27: 20 | E27: 9.086842565 | F27: 30.91315743 | G27: 10 | H27: 30
B28: 2036 | C28: 19 | D28: 19 | E28: 8.632500437 | F28: 29.36749956 | G28: 9.5 | H28: 28.5
B29: 2037 | C29: 18 | D29: 18 | E29: 8.178158309 | F29: 27.82184169 | G29: 9 | H29: 27
B30: 2038 | C30: 17 | D30: 17 | E30: 7.72381618 | F30: 26.27618382 | G30: 8.5 | H30: 25.5
B31: 2039 | C31: 16 | D31: 16 | E31: 7.269474052 | F31: 24.73052595 | G31: 8 | H31: 24
B32: 2040 | C32: 15 | D32: 15 | E32: 6.815131924 | F32: 23.18486808 | G32: 7.5 | H32: 22.5
B33: 2041 | C33: 14 | D33: 14 | E33: 6.360789796 | F33: 21.6392102 | G33: 7 | H33: 21
B34: 2042 | C34: 13 | D34: 13 | E34: 5.906447667 | F34: 20.09355233 | G34: 6.5 | H34: 19.5
B35: 2043 | C35: 12 | D35: 12 | E35: 5.452105539 | F35: 18.54789446 | G35: 6 | H35: 18
B36: 2044 | C36: 11 | D36: 11 | E36: 4.997763411 | F36: 17.00223659 | G36: 5.5 | H36: 16.5
B37: 2045 | C37: 10 | D37: 10 | E37: 4.543421283 | F37: 15.45657872 | G37: 5 | H37: 15
B38: 2046 | C38: 9 | D38: 9 | E38: 4.089079154 | F38: 13.91092085 | G38: 4.5 | H38: 13.5
B39: 2047 | C39: 8 | D39: 8 | E39: 3.634737026 | F39: 12.36526297 | G39: 4 | H39: 12
B40: 2048 | C40: 7 | D40: 7 | E40: 3.180394898 | F40: 10.8196051 | G40: 3.5 | H40: 10.5
B41: 2049 | C41: 6 | D41: 6 | E41: 2.72605277 | F41: 9.27394723 | G41: 3 | H41: 9
B42: 2050 | C42: 5 | D42: 5 | E42: =E12/10 -> 2.271710641 | F42: 7.728289359 | G42: =G12/10 -> 2.5 | H42: 7.5

Sheet Lister
B2: Dette arket viser kun hva som inngår i nedtrekksmenyene i arket.
B3: Bruker trenger ikke forholde seg til dette arket.
B7: Velg Prosjektfase | D7: Tidlig design | F7: Velg landskap | H7: Energi
B8: Tidlig design | D8: Sen design | F8: Park | H8: Transport
B9: Sen design | D9: Som bygget | F9: Gater | H9: VA
B10: Som bygget | D10: I drift | F10: Torg | H10: Renovasjon
F11: Idrettsanlegg | H11: IKT
F12: Vannlandskap | H12: Annen infrastruktur
B13: Velg bygningstype | F13: Gårdsrom/hager
B14: Småhus | F14: Strandsone
B15: Boligblokk
B16: Barnehage
B17: Skolebygg
B18: Kontor
B19: Universitet/Høyskole
B20: Sykehus
B21: Sykehjem
B22: Hotellbygning
B23: Idrettsbygning/Flerbrukshall
B24: Forretning/Næring
B25: Kulturbygning
B26: Lett industri/Verksted
B27: Flerfunksjonell
B31: Ja
B32: Nei
